bitfinex/quotes_ETHUSD_20250905
["timestamp","ask_amount","ask_price","bid_price","bid_amount"]
[1757114640230,36.9,4308.5,4308.4,11.07164725]
[1757114640435,36.9,4308.5,4308.4,11.86364725]
[1757114640633,36.9,4308.5,4308.4,14.86364725]
[1757114641499,38.13,4308.5,4308.4,14.86364725]
[1757114641921,46.93859579,4308.8,4308.7,3.11288564]
[1757114642115,46.93859579,4308.8,4308.7,13.04248564]
[1757114642334,46.93859579,4308.8,4308.7,13.15848564]
[1757114642935,46.93859579,4308.8,4308.7,52.75948564]
[1757114644340,48.16859579,4308.8,4308.7,52.75948564]
[1757114645440,49.39859579,4308.8,4308.7,52.75948564]
[1757114646817,50.62859579,4308.8,4308.7,52.75948564]
[1757114648354,51.85859579,4308.8,4308.7,52.75948564]
[1757114649767,53.08859579,4308.8,4308.7,52.75948564]
[1757114651092,54.31859579,4308.8,4308.7,52.75948564]
[1757114652341,54.31859579,4308.8,4308.7,59.92948564]
[1757114652646,55.54959579,4308.8,4308.7,59.92948564]
[1757114653954,56.77959579,4308.8,4308.7,59.92948564]
[1757114656162,58.00959579,4308.8,4308.7,59.92948564]
[1757114657433,59.23959579,4308.8,4308.7,59.92948564]
[1757114657662,59.23959579,4308.8,4308.7,57.13888564]
[1757114658031,59.23959579,4308.8,4308.7,57.58728564]
[1757114658534,59.23959579,4308.8,4308.7,53.74428564]
[1757114658742,60.46959579,4308.8,4308.7,57.58728564]
[1757114660578,61.69959579,4308.8,4308.7,57.58728564]
[1757114660727,61.69959579,4308.8,4308.7,60.08168564]
[1757114661925,62.92959579,4308.8,4308.7,60.08168564]
[1757114662127,62.92959579,4308.8,4308.7,57.13888564]
[1757114662328,62.92959579,4308.8,4308.7,57.58728564]
[1757114663429,64.15959579,4308.8,4308.7,57.58728564]
[1757114664768,65.38959579,4308.8,4308.7,57.58728564]
[1757114666077,65.38959579,4308.8,4308.7,57.13888564]
[1757114666281,66.61959579,4308.8,4308.7,57.13888564]
[1757114667554,66.61959579,4308.8,4308.7,63.53888564]
[1757114667874,67.84959579,4308.8,4308.7,63.53888564]
[1757114669189,69.07959579,4308.8,4308.7,63.53888564]
[1757114670553,70.30959579,4308.8,4308.7,63.53888564]
[1757114672066,71.53959579,4308.8,4308.7,63.53888564]
[1757114672276,71.53959579,4308.8,4308.7,68.87188564]
[1757114673351,72.76959579,4308.8,4308.7,68.87188564]
[1757114674674,73.99959579,4308.8,4308.7,68.87188564]
[1757114676198,75.22959579,4308.8,4308.7,68.87188564]
[1757114677172,75.22959579,4308.8,4308.7,68.57588564]
[1757114677370,79.46949579,4308.8,4308.7,68.57588564]
[1757114678058,79.02099579,4308.8,4308.7,68.57588564]
[1757114678903,80.25099579,4308.8,4308.7,68.57588564]
[1757114680489,81.91699579,4308.8,4308.7,68.57588564]
[1757114682204,83.15329579,4308.8,4308.7,61.40588564]
[1757114683160,83.94729579,4308.8,4308.7,61.40588564]
[1757114683365,81.37959579,4308.8,4308.7,61.40588564]
[1757114683575,81.37959579,4308.8,4308.7,61.71508564]
[1757114684462,81.37959579,4308.8,4308.7,62.15828564]
[1757114684669,82.60959579,4308.8,4308.7,61.71508564]
[1757114685607,82.60959579,4308.8,4308.7,61.40588564]
[1757114685974,83.83959579,4308.8,4308.7,61.40588564]
[1757114686472,84.58019579,4308.8,4308.7,61.40588564]
[1757114686791,84.14419579,4308.8,4308.7,63.11188564]
[1757114686994,83.83959579,4308.8,4308.7,63.11188564]
[1757114687506,85.06959579,4308.8,4308.7,63.42108564]
[1757114688010,85.06959579,4308.8,4308.7,70.59108564]
[1757114688707,86.29959579,4308.8,4308.7,70.59108564]
[1757114690071,87.52959579,4308.8,4308.7,70.59108564]
[1757114691038,87.52959579,4308.8,4308.7,71.03428564]
[1757114691245,26.23700557,4308.8,4308.7,72.96728564]
[1757114691401,27.46700557,4308.8,4308.7,73.41048564]
[1757114692002,27.46700557,4308.8,4308.7,33.80948564]
[1757114692745,28.69700557,4308.8,4308.7,33.80948564]
[1757114693109,28.69700557,4308.8,4308.7,73.41048564]
[1757114694032,29.92700557,4308.8,4308.7,73.41048564]
[1757114694226,28.92564418,4308.8,4308.7,73.41048564]
[1757114695520,30.15564418,4308.8,4308.7,73.41048564]
[1757114696145,30.15564418,4308.8,4308.7,71.03428564]
[1757114697633,31.38564418,4308.8,4308.7,71.03428564]
[1757114699263,32.61564418,4308.8,4308.7,71.03428564]
[1757114699477,32.61564418,4308.8,4308.7,66.74808564]
[1757114699681,33.35624418,4308.8,4308.7,70.28088564]
[1757114700043,35.20054418,4308.8,4308.7,70.28088564]
[1757114700375,35.63654418,4308.8,4308.7,70.28088564]
[1757114700572,36.43054418,4308.8,4308.7,70.28088564]
[1757114701953,37.66054418,4308.8,4308.7,70.28088564]
[1757114703268,35.38024418,4308.8,4308.7,70.28088564]
[1757114703570,36.61024418,4308.8,4308.7,70.28088564]
[1757114704235,36.30564418,4308.8,4308.7,70.28088564]
[1757114704829,37.53564418,4308.8,4308.7,70.28088564]
[1757114705138,37.53564418,4308.8,4308.7,71.03328564]
[1757114705943,37.53564418,4308.8,4308.7,70.59008564]
[1757114706143,37.76414946,4308.8,4308.7,70.59008564]
[1757114706958,37.76514946,4308.8,4308.7,70.59008564]
[1757114707486,38.99514946,4308.8,4308.7,70.59008564]
[1757114708495,0.001,4309.3,4309.1,0.792]
[1757114708697,0.001,4310.3,4309.4,6.11250865]
[1757114708853,0.79310611,4309.5,4309.4,10.26370865]
[1757114709045,0.79310611,4309.5,4309.4,13.08310865]
[1757114709680,0.79310611,4309.5,4309.4,13.2599792]
[1757114709887,0.79310611,4309.5,4309.4,10.8837792]
[1757114710181,2.02310611,4309.5,4309.4,10.8837792]
[1757114711342,2.02310611,4309.5,4309.4,10.4405792]
[1757114711743,3.25310611,4309.5,4309.4,50.0415792]
[1757114712172,2.25172575,4309.5,4309.4,50.0415792]
[1757114713268,3.48172575,4309.5,4309.4,50.0415792]
[1757114714779,4.71172575,4309.5,4309.4,50.0415792]
[1757114715583,4.59072575,4309.5,4309.4,50.0415792]
[1757114715782,4.59072575,4309.5,4309.4,50.5141792]
[1757114715980,5.82072575,4309.5,4309.4,50.0415792]
[1757114717446,7.05072575,4309.5,4309.4,50.0415792]
[1757114718187,6.04930541,4309.5,4309.4,50.0415792]
[1757114718486,6.04930541,4309.5,4309.4,50.1575792]
[1757114718862,7.27930541,4309.5,4309.4,50.1575792]
[1757114720364,8.50930541,4309.5,4309.4,50.1575792]
[1757114721876,9.73930541,4309.5,4309.4,50.1575792]
[1757114722696,12.81200541,4309.5,4309.4,45.0983792]
[1757114722999,12.81200541,4309.5,4309.4,9.3383792]
[1757114723199,14.04200541,4309.5,4309.4,10.1303792]
[1757114723784,13.61430541,4309.5,4309.4,49.7313792]
[1757114723983,10.96930541,4309.5,4309.4,49.7313792]
[1757114724702,12.19930541,4309.5,4309.4,50.0352792]
[1757114725367,12.20030541,4309.5,4309.4,50.0352792]
[1757114725706,12.20030541,4309.5,4309.4,49.7313792]
[1757114726009,13.43030541,4309.5,4309.4,50.0352792]
[1757114726496,13.43030541,4309.5,4309.4,49.7313792]
[1757114727286,14.66030541,4309.5,4309.4,49.7313792]
[1757114728994,15.89030541,4309.5,4309.4,49.7313792]
[1757114730319,18.96300541,4309.5,4309.4,49.7313792]
[1757114730514,20.19300541,4309.5,4309.4,49.7313792]
[1757114731074,20.19300541,4309.5,4309.4,51.4373792]
[1757114731979,21.42300541,4309.5,4309.4,51.4373792]
[1757114732823,21.42300541,4309.5,4309.4,51.5533792]
[1757114733332,22.65300541,4309.5,4309.4,51.5533792]
[1757114734226,22.22530541,4309.5,4309.4,51.5533792]
[1757114734399,19.88800541,4309.5,4309.4,51.5533792]
[1757114734600,21.11800541,4309.5,4309.4,51.5533792]
[1757114735927,21.11800541,4309.5,4309.4,56.8853792]
[1757114736239,22.34800541,4309.5,4309.4,56.8853792]
[1757114737545,23.57800541,4309.5,4309.4,56.8853792]
[1757114739305,24.50030541,4309.5,4309.4,56.8853792]
[1757114740837,24.50030541,4309.5,4309.4,63.2843792]
[1757114741022,25.73030541,4309.5,4309.4,63.2843792]
[1757114741844,26.03640541,4309.5,4309.4,63.2843792]
[1757114742199,26.47220541,4309.5,4309.4,63.2843792]
[1757114742413,30.02810541,4309.5,4309.4,63.2843792]
[1757114743949,31.25810541,4309.5,4309.4,63.2843792]
[1757114744532,28.19030541,4309.5,4309.4,63.2843792]
[1757114745111,29.42030541,4309.5,4309.4,63.2843792]
[1757114745845,29.72640541,4309.5,4309.4,63.2843792]
[1757114746146,30.16220541,4309.5,4309.4,63.2843792]
[1757114746527,33.71810541,4309.5,4309.4,63.2843792]
[1757114748012,34.94810541,4309.5,4309.4,63.2843792]
[1757114749563,36.17810541,4309.5,4309.4,63.2843792]
[1757114750811,37.40810541,4309.5,4309.4,58.6513792]
[1757114751027,37.40810541,4309.5,4309.4,62.4923792]
[1757114751241,37.40810541,4309.5,4309.4,53.21487055]
[1757114751553,37.40810541,4309.5,4309.4,60.84787055]
[1757114751917,37.40810541,4309.5,4309.4,21.24687055]
[1757114752118,38.63810541,4309.5,4309.4,21.24687055]
[1757114753538,39.86810541,4309.5,4309.4,21.24687055]
[1757114754137,39.86810541,4309.5,4309.4,23.5673792]
[1757114754693,39.86810541,4309.5,4309.4,21.24687055]
[1757114754858,41.09810541,4309.5,4309.4,21.24687055]
[1757114756630,42.32810541,4309.5,4309.4,21.24687055]
[1757114757842,42.32810541,4309.5,4309.4,23.5673792]
[1757114758040,43.55810541,4309.5,4309.4,23.5673792]
[1757114759565,41.72030541,4309.5,4309.4,23.5673792]
[1757114759873,41.72030541,4309.5,4309.4,23.8663792]
[1757114760949,41.72030541,4309.5,4309.4,63.4673792]
[1757114761267,42.95030541,4309.5,4309.4,63.5833792]
[1757114762433,44.18030541,4309.5,4309.4,60.5833792]
[1757114763961,45.41030541,4309.5,4309.4,60.5833792]
[1757114764130,45.41030541,4309.5,4309.4,63.9171792]
[1757114764334,45.41030541,4309.5,4309.4,66.3086792]
[1757114764778,31.51775062,4309.5,4309.4,66.3086792]
[1757114764962,1.33742073,4309.5,4309.4,66.3086792]
[1757114765163,1e-08,4309.7,4309.5,6.1124548]
[1757114765336,1e-08,4309.7,4309.6,7.657204]
[1757114765537,0.026,4309.8,4309.7,3.792]
[1757114765735,0.026,4309.8,4309.7,12.79564712]
[1757114766002,0.026,4309.8,4309.7,13.09464712]
[1757114766284,0.02,4310.9,4309.7,10.7743]
[1757114766486,0.02,4310.9,4310.2,1.706]
[1757114766657,0.02,4310.9,4310.2,8.548]
[1757114766983,0.02,4310.9,4310.2,48.8978]
[1757114767790,1.231,4310.3,4310.2,48.8978]
[1757114768162,1.231,4310.3,4310.2,51.2893]
[1757114768646,1.231,4310.3,4310.2,48.8978]
[1757114769306,2.461,4310.3,4310.2,48.941]
[1757114769605,5.6847,4310.3,4310.2,48.941]
[1757114769780,2.7602,4310.3,4310.2,48.941]
[1757114770098,2.461,4310.3,4310.2,48.941]
[1757114770449,2.461,4310.3,4310.2,49.2547]
[1757114770651,3.691,4310.3,4310.2,49.2547]
[1757114771068,3.691,4310.3,4310.2,56.4247]
[1757114772214,4.921,4310.3,4310.2,56.4247]
[1757114774086,6.151,4310.3,4310.2,56.4247]
[1757114774266,6.151,4310.3,4310.2,56.5407]
[1757114775596,7.381,4310.3,4310.2,56.5407]
[1757114776002,7.381,4310.3,4310.2,57.0096]
[1757114776872,8.611,4310.3,4310.2,57.0096]
[1757114777590,8.611,4310.3,4310.2,59.5373]
[1757114777793,8.27836595,4311.2,4310.5,0.792]
[1757114778087,7.27708988,4311.2,4311.1,8.1312936]
[1757114778307,8.50708988,4311.2,4311.1,11.9752936]
[1757114778823,8.50708988,4311.2,4311.1,51.5762936]
[1757114778983,8.50808988,4311.2,4311.1,51.5762936]
[1757114779316,8.50808988,4311.2,4311.1,52.0451936]
[1757114779717,9.73808988,4311.2,4311.1,54.4567936]
[1757114780406,9.73808988,4311.2,4311.1,52.0451936]
[1757114780583,9.73808988,4311.2,4311.1,51.2625936]
[1757114781023,9.73808988,4311.2,4311.1,51.5762936]
[1757114781208,9.96717948,4311.2,4311.1,51.5762936]
[1757114782611,11.19717948,4311.2,4311.1,51.5762936]
[1757114784012,12.42717948,4311.2,4311.1,51.5762936]
[1757114785451,13.65717948,4311.2,4311.1,51.5762936]
[1757114786614,14.88717948,4311.2,4311.1,51.5762936]
[1757114787149,13.8857734,4311.2,4311.1,51.8083936]
[1757114787814,13.8857734,4311.2,4311.1,51.9235936]
[1757114788015,15.1157734,4311.2,4311.1,59.0935936]
[1757114789648,16.3457734,4311.2,4311.1,59.0935936]
[1757114790634,16.6449734,4311.2,4311.1,54.9358936]
[1757114790833,16.6449734,4311.2,4311.1,58.7778936]
[1757114791046,17.5757734,4311.2,4311.1,58.7778936]
[1757114791955,17.5757734,4311.2,4311.1,51.6078936]
[1757114792521,18.8057734,4311.2,4311.1,51.6078936]
[1757114793758,19.1049734,4311.2,4311.1,51.6078936]
[1757114793937,23.2594734,4311.2,4311.1,51.6078936]
[1757114794458,20.3349734,4311.2,4311.1,51.6078936]
[1757114794823,20.0357734,4311.2,4311.1,51.6078936]
[1757114795461,21.2657734,4311.2,4311.1,51.6078936]
[1757114795663,21.2657734,4311.2,4311.1,56.9378936]
[1757114796770,22.4957734,4311.2,4311.1,56.9378936]
[1757114796965,22.4957734,4311.2,4311.1,57.2515936]
[1757114797893,22.4957734,4311.2,4311.1,64.4215936]
[1757114798190,23.7257734,4311.2,4311.1,64.4215936]
[1757114799500,24.9557734,4311.2,4311.1,64.4215936]
[1757114800565,24.9557734,4311.2,4311.1,70.8175936]
[1757114800966,26.1857734,4311.2,4311.1,70.8175936]
[1757114802189,27.4157734,4311.2,4311.1,70.8175936]
[1757114803765,28.6457734,4311.2,4311.1,70.8175936]
[1757114805460,29.8757734,4311.2,4311.1,70.8175936]
[1757114805669,29.8757734,4311.2,4311.1,70.5038936]
[1757114806890,34.2415734,4311.2,4311.1,70.5038936]
[1757114808487,32.3357734,4311.2,4311.1,70.5038936]
[1757114809090,32.6324734,4311.2,4311.1,70.5038936]
[1757114810213,33.8624734,4311.2,4311.1,70.5038936]
[1757114811705,35.0924734,4311.2,4311.1,70.5038936]
[1757114812004,37.9315734,4311.2,4311.1,70.5038936]
[1757114812209,37.9315734,4311.2,4311.1,30.9028936]
[1757114813006,37.9315734,4311.2,4311.1,70.5038936]
[1757114813308,39.1615734,4311.2,4311.1,70.5078936]
[1757114813529,36.0257734,4311.2,4311.1,70.5078936]
[1757114813668,36.0257734,4311.2,4311.1,70.8112936]
[1757114814469,37.2557734,4311.2,4311.1,70.8112936]
[1757114814806,37.2557734,4311.2,4311.1,70.5078936]
[1757114815408,37.5524734,4311.2,4311.1,70.5078936]
[1757114816010,38.7824734,4311.2,4311.1,70.5078936]
[1757114817612,40.0124734,4311.2,4311.1,70.5078936]
[1757114818212,39.7157734,4311.2,4311.1,70.5078936]
[1757114819108,39.7157734,4311.2,4311.1,70.8112936]
[1757114819314,40.9457734,4311.2,4311.1,70.8112936]
[1757114820592,42.1757734,4311.2,4311.1,70.8112936]
[1757114821514,42.1757734,4311.2,4311.1,70.5078936]
[1757114821895,43.4057734,4311.2,4311.1,70.5078936]
[1757114822096,43.4057734,4311.2,4311.1,70.8112936]
[1757114822495,43.4057734,4311.2,4311.1,70.5078936]
[1757114823417,44.6357734,4311.2,4311.1,70.5078936]
[1757114823622,44.62327512,4311.2,4311.1,70.5078936]
[1757114824219,44.62327512,4311.2,4311.1,70.8112936]
[1757114824729,45.85327512,4311.2,4311.1,70.8112936]
[1757114825519,45.85327512,4311.2,4311.1,70.5078936]
[1757114825720,46.14997512,4311.2,4311.1,70.5078936]
[1757114826097,47.37997512,4311.2,4311.1,70.5078936]
[1757114827734,48.60997512,4311.2,4311.1,70.5078936]
[1757114828494,48.59747684,4311.2,4311.1,70.5078936]
[1757114828848,48.59747684,4311.2,4311.1,70.2757936]
[1757114829000,49.82747684,4311.2,4311.1,70.2757936]
[1757114830021,49.82747684,4311.2,4311.1,63.1057936]
[1757114830698,51.05747684,4311.2,4311.1,63.1057936]
[1757114830900,50.76077684,4311.2,4311.1,63.1057936]
[1757114831401,51.04597684,4311.2,4311.1,63.1057936]
[1757114831600,50.76077684,4311.2,4311.1,63.1057936]
[1757114832143,49.93906077,4311.2,4311.1,65.8666936]
[1757114832294,37.70605037,4311.2,4311.1,66.4553936]
[1757114832490,35.70605037,4311.2,4311.1,66.57635426]
[1757114833092,24.98938078,4311.2,4311.1,66.57635426]
[1757114833290,24.21938078,4311.2,4311.1,66.57635426]
[1757114833520,24.20688249,4311.2,4311.1,66.57635426]
[1757114833744,23.85923376,4311.2,4311.1,66.57635426]
[1757114834107,21.51158503,4311.2,4311.1,66.57635426]
[1757114834549,11.07,4311.2,4311.1,66.57635426]
[1757114834749,88.88191709,4311.5,4311.4,6.3433322]
[1757114835049,86.53426836,4311.5,4311.4,13.4152322]
[1757114835430,86.18661963,4311.5,4311.4,13.4152322]
[1757114835743,85.8389709,4311.5,4311.4,10.9501322]
[1757114836043,88.8247709,4311.5,4311.4,42.7124322]
[1757114836242,88.8247709,4311.5,4311.4,46.5514322]
[1757114836419,88.8247709,4311.5,4311.4,49.5514322]
[1757114836626,86.1241709,4311.5,4311.4,49.5514322]
[1757114837517,87.3541709,4311.5,4311.4,49.5514322]
[1757114837746,90.0547709,4311.5,4311.4,49.5514322]
[1757114838646,90.04227262,4311.5,4311.4,49.5514322]
[1757114839227,91.27227262,4311.5,4311.4,49.5514322]
[1757114840411,92.50227262,4311.5,4311.4,49.5514322]
[1757114842058,93.73227262,4311.5,4311.4,49.5514322]
[1757114842224,93.73227262,4311.5,4311.4,49.6666322]
[1757114843650,94.94977434,4311.5,4311.4,49.6666322]
[1757114843863,94.51987434,4311.5,4311.4,49.6666322]
[1757114844161,92.24917434,4311.5,4311.4,49.6666322]
[1757114845534,93.90907434,4311.5,4311.4,49.6666322]
[1757114846931,95.13907434,4311.5,4311.4,49.6666322]
[1757114847373,97.41077434,4311.5,4311.4,49.6666322]
[1757114848139,97.41077434,4311.5,4311.4,56.8366322]
[1757114848472,98.62827605,4311.5,4311.4,56.8366322]
[1757114850054,99.85827605,4311.5,4311.4,56.8366322]
[1757114850580,96.87247605,4311.5,4311.4,56.8366322]
[1757114851566,98.10247605,4311.5,4311.4,56.8366322]
[1757114851884,98.10247605,4311.5,4311.4,57.1324322]
[1757114852173,98.10247605,4311.5,4311.4,60.3014322]
[1757114852948,99.33247605,4311.5,4311.4,60.3014322]
[1757114853553,99.31997777,4311.5,4311.4,60.3014322]
[1757114853782,98.9723951,4311.5,4311.4,60.3014322]
[1757114854152,98.62481243,4311.5,4311.4,53.1314322]
[1757114854361,99.85481243,4311.5,4311.4,53.1314322]
[1757114854564,99.50722976,4311.5,4311.4,53.1314322]
[1757114854963,99.15964709,4311.5,4311.4,53.1314322]
[1757114855490,98.81206442,4311.5,4311.4,53.1314322]
[1757114855700,100.04206442,4311.5,4311.4,53.1314322]
[1757114856394,100.04206442,4311.5,4311.4,50.6663322]
[1757114857593,101.27206442,4311.5,4311.4,50.6663322]
[1757114858194,100.92448175,4311.5,4311.4,50.6663322]
[1757114858391,100.92448175,4311.5,4311.4,50.1943322]
[1757114858598,100.91198346,4311.5,4311.4,50.1943322]
[1757114858761,102.14198346,4311.5,4311.4,50.1943322]
[1757114859795,53.49036132,4311.5,4311.4,50.1943322]
[1757114860096,9.90990872,4311.5,4311.4,55.4027322]
[1757114860298,6.09355699,4311.5,4311.4,55.4027322]
[1757114860593,5.74597432,4311.5,4311.4,55.4027322]
[1757114860797,5.74597432,4311.5,4311.4,57.7187322]
[1757114860998,5.39839165,4311.5,4311.4,57.7187322]
[1757114861358,6.28080898,4311.5,4311.4,57.7187322]
[1757114861782,5.93322631,4311.5,4311.4,57.7187322]
[1757114862188,5.58564364,4311.5,4311.4,57.7187322]
[1757114862496,5.58564364,4311.5,4311.4,54.9483322]
[1757114862696,6.46806097,4311.5,4311.4,54.9483322]
[1757114862865,6.46806097,4311.5,4311.4,55.4030322]
[1757114863068,6.1204783,4311.5,4311.4,55.4030322]
[1757114863577,5.76039735,4311.5,4311.4,55.4030322]
[1757114863810,5.41281468,4311.5,4311.4,55.4030322]
[1757114863983,6.64281468,4311.5,4311.4,55.4030322]
[1757114864173,6.29523201,4311.5,4311.4,55.4030322]
[1757114864579,5.94764934,4311.5,4311.4,55.4030322]
[1757114864908,5.94864934,4311.5,4311.4,55.4030322]
[1757114865110,5.60106667,4311.5,4311.4,48.3755322]
[1757114865276,7.59956667,4311.5,4311.4,49.8975322]
[1757114865989,7.13116667,4311.5,4311.4,57.0675322]
[1757114866720,8.82956667,4311.5,4311.4,57.0675322]
[1757114868215,10.05956667,4311.5,4311.4,57.0675322]
[1757114868787,10.04706839,4311.5,4311.4,57.0675322]
[1757114870120,11.27706839,4311.5,4311.4,57.0675322]
[1757114871123,10.50856839,4311.5,4311.4,57.3802322]
[1757114871494,11.73856839,4311.5,4311.4,57.3802322]
[1757114872834,12.96856839,4311.5,4311.4,57.3802322]
[1757114873509,12.9560701,4311.5,4311.4,57.3802322]
[1757114874436,14.1860701,4311.5,4311.4,57.3802322]
[1757114875933,15.4160701,4311.5,4311.4,57.3802322]
[1757114877134,16.6460701,4311.5,4311.4,57.3802322]
[1757114878506,17.86357182,4311.5,4311.4,57.3802322]
[1757114880706,19.09357182,4311.5,4311.4,57.3802322]
[1757114882158,20.32357182,4311.5,4311.4,57.3802322]
[1757114883523,21.54107353,4311.5,4311.4,57.3802322]
[1757114885259,22.77107353,4311.5,4311.4,57.3802322]
[1757114885816,22.77107353,4311.5,4311.4,50.2102322]
[1757114886950,24.00107353,4311.5,4311.4,50.2102322]
[1757114888415,24.88350213,4311.5,4311.4,50.2102322]
[1757114888818,24.53593073,4311.5,4311.4,50.2102322]
[1757114890074,25.76593073,4311.5,4311.4,50.2102322]
[1757114890652,25.76593073,4311.5,4311.4,49.8975322]
[1757114890822,25.76593073,4311.5,4311.4,50.1833322]
[1757114891568,26.99593073,4311.5,4311.4,50.1833322]
[1757114893164,28.22593073,4311.5,4311.4,50.1833322]
[1757114893932,27.87833436,4311.5,4311.4,57.3533322]
[1757114894368,28.76073799,4311.5,4311.4,57.3533322]
[1757114894772,28.41314162,4311.5,4311.4,57.3533322]
[1757114895234,28.06554525,4311.5,4311.4,57.3533322]
[1757114895636,29.29554525,4311.5,4311.4,57.3533322]
[1757114896044,28.94794888,4311.5,4311.4,57.3533322]
[1757114896736,28.60035251,4311.5,4311.4,57.3533322]
[1757114896969,29.83035251,4311.5,4311.4,57.3533322]
[1757114897669,30.58985251,4311.5,4311.4,58.7725322]
[1757114898384,31.81985251,4311.5,4311.4,58.7725322]
[1757114899671,33.04985251,4311.5,4311.4,58.7725322]
[1757114901384,35.43785251,4311.5,4311.4,58.7725322]
[1757114901588,36.66785251,4311.5,4311.4,58.7725322]
[1757114902900,37.89785251,4311.5,4311.4,58.7725322]
[1757114904364,39.12785251,4311.5,4311.4,58.7725322]
[1757114904755,38.66575251,4311.5,4311.4,53.2295322]
[1757114904957,39.12785251,4311.5,4311.4,58.5406322]
[1757114905562,39.12785251,4311.5,4311.4,41.306]
[1757114905790,40.35785251,4311.5,4311.4,45.144]
[1757114906066,40.35785251,4311.5,4311.4,48.144]
[1757114906402,42.62576048,4311.5,4311.4,44.6422419]
[1757114906697,40.35785251,4311.5,4311.4,47.6422419]
[1757114906897,40.35785251,4311.5,4311.4,9.335]
[1757114907059,41.58785251,4311.5,4311.4,11.6544322]
[1757114907878,41.58785251,4311.5,4311.4,50.2593322]
[1757114908195,41.58785251,4311.5,4311.4,47.9399]
[1757114908493,42.81785251,4311.5,4311.4,44.1019]
[1757114908801,43.39535656,4311.5,4311.4,9.341]
[1757114909510,42.81785251,4311.5,4311.4,9.341]
[1757114909679,44.04785251,4311.5,4311.4,9.341]
[1757114909884,44.04785251,4311.5,4311.4,48.444]
[1757114911220,45.27785251,4311.5,4311.4,48.444]
[1757114912625,46.50785251,4311.5,4311.4,48.444]
[1757114914008,47.73785251,4311.5,4311.4,48.444]
[1757114915402,48.96785251,4311.5,4311.4,48.444]
[1757114915606,48.96785251,4311.5,4311.4,48.5592]
[1757114916708,50.19785251,4311.5,4311.4,48.5592]
[1757114918546,51.42785251,4311.5,4311.4,48.5592]
[1757114919848,52.65785251,4311.5,4311.4,48.5592]
[1757114921348,53.88785251,4311.5,4311.4,48.5592]
[1757114922748,55.11785251,4311.5,4311.4,48.5592]
[1757114924066,56.34785251,4311.5,4311.4,48.5592]
[1757114925453,57.57785251,4311.5,4311.4,48.5592]
[1757114927058,58.80785251,4311.5,4311.4,48.5632]
[1757114928114,60.03785251,4311.5,4311.4,48.5632]
[1757114929640,61.26785251,4311.5,4311.4,48.5632]
[1757114931061,62.49785251,4311.5,4311.4,48.5632]
[1757114932163,64.76576048,4311.5,4311.4,48.5632]
[1757114932457,65.99576048,4311.5,4311.4,48.5632]
[1757114933039,65.99576048,4311.5,4311.4,9.4602]
[1757114933466,63.72785251,4311.5,4311.4,9.4602]
[1757114933768,64.95785251,4311.5,4311.4,9.4602]
[1757114934760,64.49575251,4311.5,4311.4,9.4602]
[1757114935061,66.19565251,4311.5,4311.4,9.4602]
[1757114936930,67.42565251,4311.5,4311.4,9.4602]
[1757114938241,68.65565251,4311.5,4311.4,9.4602]
[1757114939769,69.88565251,4311.5,4311.4,9.4602]
[1757114940978,69.39905251,4311.5,4311.4,9.4602]
[1757114941144,71.09895251,4311.5,4311.4,9.4602]
[1757114941871,71.09895251,4311.5,4311.4,48.5632]
[1757114942679,72.32895251,4311.5,4311.4,48.5632]
[1757114943948,73.55895251,4311.5,4311.4,48.5632]
[1757114944874,73.55895251,4311.5,4311.4,9.4602]
[1757114945400,74.78895251,4311.5,4311.4,9.4602]
[1757114945772,74.78895251,4311.5,4311.4,5.6122]
[1757114946109,74.78895251,4311.5,4311.4,6.4572]
[1757114946870,76.01895251,4311.5,4311.4,6.4572]
[1757114947918,76.68270216,4311.5,4311.4,2.6122]
[1757114948096,77.15260216,4311.5,4311.4,6.4572]
[1757114948303,78.38260216,4311.5,4311.4,6.4572]
[1757114949424,78.38260216,4311.5,4311.4,5.6652]
[1757114949599,79.61260216,4311.5,4311.4,5.6652]
[1757114950983,80.84260216,4311.5,4311.4,5.6652]
[1757114951184,79.70895251,4311.5,4311.4,6.4572]
[1757114952812,80.93895251,4311.5,4311.4,5.6652]
[1757114954215,82.16895251,4311.5,4311.4,5.6652]
[1757114955605,83.39895251,4311.5,4311.4,5.6652]
[1757114956987,84.62895251,4311.5,4311.4,5.6652]
[1757114958525,85.85895251,4311.5,4311.4,5.6652]
[1757114960027,87.08895251,4311.5,4311.4,5.6652]
[1757114960447,89.35686048,4311.5,4311.4,5.6652]
[1757114960728,91.67623888,4311.5,4311.4,5.6652]
[1757114961319,92.90623888,4311.5,4311.4,5.6652]
[1757114962516,94.13623888,4311.5,4311.4,5.6652]
[1757114964035,95.36623888,4311.5,4311.4,5.6652]
[1757114965553,96.59623888,4311.5,4311.4,5.6652]
[1757114966767,95.50686048,4311.5,4311.4,5.6652]
[1757114967049,92.71963091,4311.5,4311.4,5.6652]
[1757114967750,95.47963091,4311.5,4311.4,5.6652]
[1757114968045,93.16025251,4311.5,4311.4,5.6652]
[1757114968246,96.70963091,4311.5,4311.4,5.6652]
[1757114968966,98.97753888,4311.5,4311.4,5.6652]
[1757114969747,100.20753888,4311.5,4311.4,5.6652]
[1757114971268,101.43753888,4311.5,4311.4,5.6652]
[1757114971419,98.67753888,4311.5,4311.4,5.6652]
[1757114971842,101.43753888,4311.5,4311.4,5.6652]
[1757114972752,102.66753888,4311.5,4311.4,5.6652]
[1757114974020,103.89753888,4311.5,4311.4,5.6652]
[1757114975757,105.12753888,4311.5,4311.4,5.6652]
[1757114977126,106.35753888,4311.5,4311.4,5.6652]
[1757114978466,107.58753888,4311.5,4311.4,5.6652]
[1757114980154,108.81753888,4311.5,4311.4,5.6652]
[1757114981553,110.04753888,4311.5,4311.4,5.6652]
[1757114983255,107.77963091,4311.5,4311.4,5.6652]
[1757114983475,109.00963091,4311.5,4311.4,5.6652]
[1757114985075,110.23963091,4311.5,4311.4,5.6652]
[1757114986585,111.46963091,4311.5,4311.4,5.6652]
[1757114987184,106.09035251,4311.5,4311.4,5.9628]
[1757114987489,108.40973091,4311.5,4311.4,5.9628]
[1757114987967,109.63973091,4311.5,4311.4,5.9628]
[1757114989190,109.95213091,4311.5,4311.4,5.6652]
[1757114989394,116.19623888,4311.5,4311.4,5.6652]
[1757114990894,117.42623888,4311.5,4311.4,5.6652]
[1757114992294,118.65623888,4311.5,4311.4,5.6652]
[1757114993582,119.88623888,4311.5,4311.4,5.6652]
[1757114994752,121.11623888,4311.5,4311.4,5.6652]
[1757114994959,120.67233888,4311.5,4311.3,0.004]
[1757114995199,8.94362844,4311.4,4311.1,5.334]
[1757114995371,5.065686,4311.3,4311.2,5.548]
[1757114995584,2.3195398,4311.2,4311.1,5.4492]
[1757114995783,5.0657398,4311.2,4311.1,1.706]
[1757114995983,2.31964741,4311.0,4310.9,0.1192]
[1757114996207,2.31964741,4311.0,4310.9,1.8252]
[1757114996417,5.37824741,4311.0,4310.9,1.8252]